[Event "Early-Titled-Tuesday-Blitz-January-16-2024"]
[Site "Chess.com"]
[Date "2024.01.16"]
[Round "2"]
[White "Joshukid"]
[Black "alexrustemov"]
[Result "1-0"]
[WhiteElo "2603"]
[BlackElo "2862"]
[TimeControl "180+1"]
[EndTime "8:18:37 PST"]
[Termination "Joshukid won by resignation"]

1. e4 {[%clk 0:03:00.3]} 1... e6 {[%clk 0:03:00.3]} 2. d3 {[%clk 0:02:59.1]}
2... c5 {[%clk 0:02:59.6]} 3. Nf3 {[%clk 0:02:59]} 3... Nc6 {[%clk 0:03:00.2]}
4. g3 {[%clk 0:02:57.8]} 4... g6 {[%clk 0:03:00.8]} 5. Bg2 {[%clk 0:02:58]} 5...
Bg7 {[%clk 0:03:01.5]} 6. O-O {[%clk 0:02:58.6]} 6... Nge7 {[%clk 0:03:02]} 7.
Nc3 {[%clk 0:02:47]} 7... d6 {[%clk 0:02:58.5]} 8. Be3 {[%clk 0:02:46.6]} 8...
e5 {[%clk 0:02:58.4]} 9. Nd5 {[%clk 0:02:46.6]} 9... Nxd5 {[%clk 0:02:50.4]} 10.
exd5 {[%clk 0:02:47.5]} 10... Nd4 {[%clk 0:02:50.4]} 11. c3 {[%clk 0:02:45.3]}
11... Nxf3+ {[%clk 0:02:49.4]} 12. Bxf3 {[%clk 0:02:45.8]} 12... O-O {[%clk
0:02:49.2]} 13. Bg2 {[%clk 0:02:44.6]} 13... Bd7 {[%clk 0:02:43.6]} 14. d4
{[%clk 0:02:42]} 14... cxd4 {[%clk 0:02:39]} 15. cxd4 {[%clk 0:02:42.9]} 15...
Re8 {[%clk 0:02:33.9]} 16. dxe5 {[%clk 0:02:43.3]} 16... Bxe5 {[%clk 0:02:33.1]}
17. Qb3 {[%clk 0:02:41.6]} 17... b6 {[%clk 0:02:26.3]} 18. Rac1 {[%clk
0:02:40.3]} 18... Rc8 {[%clk 0:02:25.4]} 19. Rxc8 {[%clk 0:02:37.4]} 19... Qxc8
{[%clk 0:02:22.6]} 20. Rc1 {[%clk 0:02:38.3]} 20... Qb8 {[%clk 0:02:19.2]} 21.
Bf1 {[%clk 0:02:38.5]} 21... Rc8 {[%clk 0:02:18.4]} 22. Bb5 {[%clk 0:02:30]}
22... Rxc1+ {[%clk 0:02:14.4]} 23. Bxc1 {[%clk 0:02:30.9]} 23... Bh3 {[%clk
0:02:10]} 24. Qc2 {[%clk 0:02:23.8]} 24... Qd8 {[%clk 0:02:00.3]} 25. Qc6 {[%clk
0:02:21]} 25... Kg7 {[%clk 0:01:56.7]} 26. Qc2 {[%clk 0:01:48.9]} 26... Qf6
{[%clk 0:01:55.7]} 27. Bf1 {[%clk 0:01:46.3]} 27... Bxf1 {[%clk 0:01:50.6]} 28.
Kxf1 {[%clk 0:01:46.1]} 28... Qf3 {[%clk 0:01:50.5]} 29. Qd2 {[%clk 0:01:33.4]}
29... Qh1+ {[%clk 0:01:44.8]} 30. Ke2 {[%clk 0:01:33.6]} 30... Qxh2 {[%clk
0:01:45.2]} 31. b3 {[%clk 0:01:33.8]} 31... Qh5+ {[%clk 0:01:44.2]} 32. Kf1
{[%clk 0:01:33.9]} 32... Qh1+ {[%clk 0:01:43]} 33. Ke2 {[%clk 0:01:34.2]} 33...
Qe4+ {[%clk 0:01:43.3]} 34. Kf1 {[%clk 0:01:34.9]} 34... h5 {[%clk 0:01:41.8]}
35. Bb2 {[%clk 0:01:33.6]} 35... Qb1+ {[%clk 0:01:38.7]} 36. Bc1 {[%clk
0:01:31.2]} 36... Qe4 {[%clk 0:01:23.5]} 37. Bb2 {[%clk 0:01:30.7]} 37... Bxb2
{[%clk 0:01:18.3]} 38. Qxb2+ {[%clk 0:01:30.6]} 38... Qe5 {[%clk 0:01:18.7]} 39.
Qd2 {[%clk 0:01:24.2]} 39... Kf6 {[%clk 0:01:17.1]} 40. Kg2 {[%clk 0:01:23.3]}
40... Qe4+ {[%clk 0:01:16]} 41. Kh2 {[%clk 0:01:22.6]} 41... Ke5 {[%clk
0:01:15.3]} 42. Qg5+ {[%clk 0:01:12.7]} 42... Qf5 {[%clk 0:01:12.5]} 43. Qd2
{[%clk 0:01:01.7]} 43... g5 {[%clk 0:01:12]} 44. Qe2+ {[%clk 0:00:42.7]} 44...
Kxd5 {[%clk 0:01:11.3]} 45. Qb5+ {[%clk 0:00:43.3]} 45... Ke6 {[%clk 0:01:10.2]}
46. Qe8+ {[%clk 0:00:43]} 46... Kf6 {[%clk 0:01:08.6]} 47. Kg1 {[%clk
0:00:36.3]} 47... Qe6 {[%clk 0:01:03.1]} 48. Qh8+ {[%clk 0:00:33.5]} 48... Kg6
{[%clk 0:01:02.6]} 49. Qg8+ {[%clk 0:00:34]} 49... Kf5 {[%clk 0:01:02.6]} 50.
Qh7+ {[%clk 0:00:32.3]} 50... Kg4 {[%clk 0:00:59.9]} 51. Qd3 {[%clk 0:00:26.5]}
51... Qe1+ {[%clk 0:00:54.8]} 52. Kg2 {[%clk 0:00:26]} 1-0

[Event "Early-Titled-Tuesday-Blitz-January-16-2024"]
[Site "Chess.com"]
[Date "2024.01.16"]
[Round "2"]
[White "ContrVersia"]
[Black "SaiHanThiha"]
[Result "0-1"]
[WhiteElo "2827"]
[BlackElo "2583"]
[TimeControl "180+1"]
[EndTime "8:18:40 PST"]
[Termination "SaiHanThiha won on time"]

1. Nf3 {[%clk 0:03:00.9]} 1... Nf6 {[%clk 0:02:59.7]} 2. c4 {[%clk 0:03:00.9]}
2... g6 {[%clk 0:02:59.8]} 3. g3 {[%clk 0:03:01.2]} 3... Bg7 {[%clk 0:02:59]} 4.
Bg2 {[%clk 0:03:02.1]} 4... O-O {[%clk 0:02:58.9]} 5. O-O {[%clk 0:03:02.5]}
5... d6 {[%clk 0:02:58.7]} 6. d4 {[%clk 0:03:02.8]} 6... c6 {[%clk 0:02:58.2]}
7. Nc3 {[%clk 0:03:02.6]} 7... Qa5 {[%clk 0:02:55.8]} 8. e4 {[%clk 0:03:02.1]}
8... Bg4 {[%clk 0:02:55.5]} 9. h3 {[%clk 0:02:59.5]} 9... Bxf3 {[%clk
0:02:54.6]} 10. Bxf3 {[%clk 0:03:00.4]} 10... e5 {[%clk 0:02:54]} 11. d5 {[%clk
0:02:56.6]} 11... cxd5 {[%clk 0:02:54.2]} 12. cxd5 {[%clk 0:02:57.5]} 12... Rc8
{[%clk 0:02:53.6]} 13. Bd2 {[%clk 0:02:54]} 13... Nbd7 {[%clk 0:02:52.8]} 14.
Qb1 {[%clk 0:02:34.8]} 14... h5 {[%clk 0:02:42.1]} 15. b4 {[%clk 0:02:25.2]}
15... Qd8 {[%clk 0:02:42.3]} 16. Nb5 {[%clk 0:02:04]} 16... Nb6 {[%clk
0:02:41.9]} 17. Qd3 {[%clk 0:01:56.1]} 17... Nc4 {[%clk 0:02:30.8]} 18. Bg5
{[%clk 0:01:41.6]} 18... Qd7 {[%clk 0:02:22.4]} 19. a4 {[%clk 0:01:36.5]} 19...
a6 {[%clk 0:02:19.5]} 20. Nc3 {[%clk 0:01:30]} 20... Qxh3 {[%clk 0:02:18.4]} 21.
Rfc1 {[%clk 0:01:21]} 21... Ng4 {[%clk 0:02:01.2]} 22. Rc2 {[%clk 0:01:04.1]}
22... b5 {[%clk 0:01:26.7]} 23. Nd1 {[%clk 0:00:55.7]} 23... Nb6 {[%clk
0:01:18]} 24. Rc6 {[%clk 0:00:52.4]} 24... Nxa4 {[%clk 0:01:13.1]} 25. Bg2
{[%clk 0:00:44.5]} 25... Qh2+ {[%clk 0:01:12.3]} 26. Kf1 {[%clk 0:00:45]} 26...
f6 {[%clk 0:01:04]} 27. Bd2 {[%clk 0:00:44.8]} 27... h4 {[%clk 0:00:59.6]} 28.
gxh4 {[%clk 0:00:45.1]} 28... Qxh4 {[%clk 0:00:59.5]} 29. Rxd6 {[%clk
0:00:40.3]} 29... Nb2 {[%clk 0:00:57.3]} 30. Qg3 {[%clk 0:00:40.5]} 30... Qxg3
{[%clk 0:00:48.2]} 31. fxg3 {[%clk 0:00:41.4]} 31... Rc2 {[%clk 0:00:46.7]} 32.
Nxb2 {[%clk 0:00:23.8]} 32... Rxd2 {[%clk 0:00:46.8]} 33. Nd1 {[%clk 0:00:24.2]}
33... Rc8 {[%clk 0:00:47]} 34. Rc6 {[%clk 0:00:19.5]} 34... Rd8 {[%clk
0:00:35.4]} 35. Rc3 {[%clk 0:00:15.4]} 35... Bf8 {[%clk 0:00:34.5]} 36. Rb3
{[%clk 0:00:13]} 36... Rc8 {[%clk 0:00:33.7]} 37. Bh3 {[%clk 0:00:10.9]} 37...
Nh2+ {[%clk 0:00:31.9]} 38. Kg1 {[%clk 0:00:11]} 38... Rcc2 {[%clk 0:00:32.2]}
39. Rab1 {[%clk 0:00:04.7]} 39... Bxb4 {[%clk 0:00:32]} 40. Kh1 {[%clk
0:00:01.9]} 40... Bc5 {[%clk 0:00:29.8]} 41. Be6+ {[%clk 0:00:02.2]} 41... Kg7
{[%clk 0:00:29.7]} 42. Ra1 {[%clk 0:00:02.8]} 42... Nf3 {[%clk 0:00:29.2]} 0-1

[Event "Early-Titled-Tuesday-Blitz-January-16-2024"]
[Site "Chess.com"]
[Date "2024.01.16"]
[Round "2"]
[White "remyrushbrooke"]
[Black "Alimpic"]
[Result "0-1"]
[WhiteElo "2204"]
[BlackElo "2491"]
[TimeControl "180+1"]
[EndTime "8:18:42 PST"]
[Termination "Alimpic won by resignation"]

1. Nf3 {[%clk 0:02:59.6]} 1... d5 {[%clk 0:02:56]} 2. g3 {[%clk 0:03:00.2]} 2...
c6 {[%clk 0:02:53.6]} 3. Bg2 {[%clk 0:02:59.2]} 3... Bf5 {[%clk 0:02:54.2]} 4.
c4 {[%clk 0:02:59.6]} 4... e6 {[%clk 0:02:54.5]} 5. O-O {[%clk 0:02:57.5]} 5...
Nd7 {[%clk 0:02:50.6]} 6. cxd5 {[%clk 0:02:56.1]} 6... exd5 {[%clk 0:02:49.4]}
7. d3 {[%clk 0:02:56.2]} 7... Ngf6 {[%clk 0:02:46.3]} 8. Nc3 {[%clk 0:02:56.6]}
8... Be7 {[%clk 0:02:45.1]} 9. Qc2 {[%clk 0:02:53.3]} 9... O-O {[%clk
0:02:41.2]} 10. e4 {[%clk 0:02:50.9]} 10... dxe4 {[%clk 0:02:41.4]} 11. dxe4
{[%clk 0:02:50.9]} 11... Bg6 {[%clk 0:02:41.3]} 12. Nh4 {[%clk 0:02:50.1]} 12...
Re8 {[%clk 0:02:24.6]} 13. Nxg6 {[%clk 0:02:49.4]} 13... hxg6 {[%clk 0:02:25.5]}
14. h3 {[%clk 0:02:48.4]} 14... a5 {[%clk 0:02:20.5]} 15. Be3 {[%clk 0:02:48.6]}
15... Bc5 {[%clk 0:02:15]} 16. Qe2 {[%clk 0:02:38.4]} 16... Bxe3 {[%clk
0:02:11.3]} 17. Qxe3 {[%clk 0:02:37.8]} 17... Qb6 {[%clk 0:02:12]} 18. Qxb6
{[%clk 0:02:33.2]} 18... Nxb6 {[%clk 0:02:12.9]} 19. Rad1 {[%clk 0:02:28]} 19...
Rad8 {[%clk 0:02:04]} 20. b3 {[%clk 0:02:24.9]} 20... Kf8 {[%clk 0:01:45.9]} 21.
f4 {[%clk 0:02:25.1]} 21... Ke7 {[%clk 0:01:41.5]} 22. e5 {[%clk 0:02:23.5]}
22... Nfd5 {[%clk 0:01:40]} 23. Nxd5+ {[%clk 0:02:04.3]} 23... Nxd5 {[%clk
0:01:40.9]} 24. Bxd5 {[%clk 0:02:03.8]} 24... cxd5 {[%clk 0:01:30.6]} 25. Rd4
{[%clk 0:02:04]} 25... Ke6 {[%clk 0:01:22.3]} 26. g4 {[%clk 0:02:02.4]} 26...
Re7 {[%clk 0:01:17]} 27. Kf2 {[%clk 0:01:28.9]} 27... Rc7 {[%clk 0:00:53.2]} 28.
Rfd1 {[%clk 0:01:28]} 28... g5 {[%clk 0:00:47.6]} 29. fxg5 {[%clk 0:01:13.8]}
29... Kxe5 {[%clk 0:00:47.4]} 30. R1d2 {[%clk 0:01:07.6]} 30... Rc3 {[%clk
0:00:37.9]} 31. R4d3 {[%clk 0:01:03.2]} 31... Rxd3 {[%clk 0:00:37.8]} 32. Rxd3
{[%clk 0:01:04.1]} 32... Kf4 {[%clk 0:00:37.6]} 33. Rf3+ {[%clk 0:01:03.4]}
33... Kxg5 {[%clk 0:00:35.6]} 34. Rxf7 {[%clk 0:01:03.8]} 34... Rc8 {[%clk
0:00:18.4]} 35. Rxg7+ {[%clk 0:01:02.3]} 35... Kf4 {[%clk 0:00:17.2]} 36. Rf7+
{[%clk 0:01:01.1]} 36... Ke4 {[%clk 0:00:17.1]} 37. Rxb7 {[%clk 0:01:00.8]}
37... Rc2+ {[%clk 0:00:15.9]} 38. Kg3 {[%clk 0:01:00.7]} 38... d4 {[%clk
0:00:10.9]} 39. Re7+ {[%clk 0:00:53.2]} 39... Kd5 {[%clk 0:00:07.4]} 40. h4
{[%clk 0:00:53.1]} 40... d3 {[%clk 0:00:06.3]} 41. g5 {[%clk 0:00:49.3]} 41...
d2 {[%clk 0:00:05.5]} 42. Rd7+ {[%clk 0:00:48]} 42... Ke4 {[%clk 0:00:04.4]} 43.
h5 {[%clk 0:00:45.4]} 43... Rc3+ {[%clk 0:00:04.2]} 44. Kg4 {[%clk 0:00:44.2]}
44... Rd3 {[%clk 0:00:05.1]} 45. Re7+ {[%clk 0:00:43.8]} 45... Kd4 {[%clk
0:00:02.9]} 46. Rd7+ {[%clk 0:00:43.6]} 46... Kc3 {[%clk 0:00:03.4]} 47. Rc7+
{[%clk 0:00:43.7]} 47... Kb2 {[%clk 0:00:03.6]} 48. Rc1 {[%clk 0:00:34.9]} 48...
dxc1=Q {[%clk 0:00:03.5]} 0-1

[Event "Early-Titled-Tuesday-Blitz-January-16-2024"]
[Site "Chess.com"]
[Date "2024.01.16"]
[Round "2"]
[White "maHmoUd-S-haddAd-M"]
[Black "Alex_Sahakyan2006"]
[Result "0-1"]
[WhiteElo "2345"]
[BlackElo "2717"]
[TimeControl "180+1"]
[EndTime "8:18:43 PST"]
[Termination "Alex_Sahakyan2006 won by checkmate"]

1. e4 {[%clk 0:03:00.9]} 1... c6 {[%clk 0:02:56.4]} 2. d4 {[%clk 0:03:00.5]}
2... d5 {[%clk 0:02:56.6]} 3. exd5 {[%clk 0:03:01.4]} 3... cxd5 {[%clk
0:02:57.5]} 4. Bd3 {[%clk 0:03:01.8]} 4... Nc6 {[%clk 0:02:57.6]} 5. c3 {[%clk
0:03:02.3]} 5... Nf6 {[%clk 0:02:57.6]} 6. Bf4 {[%clk 0:03:02.4]} 6... g6 {[%clk
0:02:57.7]} 7. Nf3 {[%clk 0:03:00.2]} 7... Bg7 {[%clk 0:02:58.2]} 8. h3 {[%clk
0:02:59.7]} 8... Bf5 {[%clk 0:02:56.9]} 9. Ne5 {[%clk 0:02:59.4]} 9... O-O
{[%clk 0:02:56.9]} 10. Bxf5 {[%clk 0:02:58.1]} 10... gxf5 {[%clk 0:02:57.8]} 11.
O-O {[%clk 0:02:50.4]} 11... e6 {[%clk 0:02:57.6]} 12. Nd2 {[%clk 0:02:45.4]}
12... Rc8 {[%clk 0:02:44.2]} 13. Ndf3 {[%clk 0:02:37.6]} 13... Ne4 {[%clk
0:02:39.5]} 14. Nd3 {[%clk 0:02:21.3]} 14... Ne7 {[%clk 0:02:39]} 15. Nfe5
{[%clk 0:02:15]} 15... Ng6 {[%clk 0:02:39.2]} 16. Nxg6 {[%clk 0:02:11]} 16...
hxg6 {[%clk 0:02:40.1]} 17. f3 {[%clk 0:02:07.6]} 17... Nd6 {[%clk 0:02:39.8]}
18. Qe1 {[%clk 0:02:04.6]} 18... Nc4 {[%clk 0:02:22.9]} 19. Qg3 {[%clk
0:02:00.9]} 19... Bf6 {[%clk 0:02:16.6]} 20. Rae1 {[%clk 0:01:56.2]} 20... Kg7
{[%clk 0:02:15.5]} 21. Re2 {[%clk 0:01:47.5]} 21... Rh8 {[%clk 0:02:13.2]} 22.
Be5 {[%clk 0:01:43.8]} 22... b5 {[%clk 0:02:03.6]} 23. Bxf6+ {[%clk 0:01:43.4]}
23... Qxf6 {[%clk 0:02:03.5]} 24. Qe1 {[%clk 0:01:34]} 24... a5 {[%clk
0:01:59.9]} 25. a3 {[%clk 0:01:33]} 25... Qg5 {[%clk 0:01:55.1]} 26. Qc1 {[%clk
0:01:20]} 26... Qg3 {[%clk 0:01:44.6]} 27. Nf2 {[%clk 0:00:54.8]} 27... b4
{[%clk 0:01:27.6]} 28. axb4 {[%clk 0:00:53.9]} 28... axb4 {[%clk 0:01:28.5]} 29.
Nh1 {[%clk 0:00:54.2]} 29... Qb8 {[%clk 0:01:26.1]} 30. Qg5 {[%clk 0:00:48.4]}
30... Rh5 {[%clk 0:01:25.2]} 31. Qg3 {[%clk 0:00:47.8]} 31... bxc3 {[%clk
0:01:20.7]} 32. Qxb8 {[%clk 0:00:46.3]} 32... Rxb8 {[%clk 0:01:21.6]} 33. bxc3
{[%clk 0:00:46.6]} 33... Rb3 {[%clk 0:01:21]} 34. Rc1 {[%clk 0:00:45.4]} 34...
Rh8 {[%clk 0:01:18]} 35. Nf2 {[%clk 0:00:38]} 35... Ra8 {[%clk 0:01:18.1]} 36.
Nd1 {[%clk 0:00:35.8]} 36... Raa3 {[%clk 0:01:11.5]} 37. Kf2 {[%clk 0:00:35.4]}
37... f4 {[%clk 0:01:10.3]} 38. g4 {[%clk 0:00:30.5]} 38... Nd6 {[%clk
0:01:02.2]} 39. h4 {[%clk 0:00:23.1]} 39... Nb5 {[%clk 0:01:01.6]} 40. Rec2
{[%clk 0:00:22.2]} 40... Nd6 {[%clk 0:00:59.9]} 41. Ke2 {[%clk 0:00:20.5]} 41...
Nc4 {[%clk 0:00:59.7]} 42. Kd3 {[%clk 0:00:18.7]} 42... Rb8 {[%clk 0:00:58.6]}
43. Rh2 {[%clk 0:00:12.6]} 43... Kf6 {[%clk 0:00:58.1]} 44. Rg2 {[%clk
0:00:12.6]} 44... Rh8 {[%clk 0:00:48.9]} 45. Rh2 {[%clk 0:00:12.9]} 45... Rb8
{[%clk 0:00:49.4]} 46. h5 {[%clk 0:00:13]} 46... Rh8 {[%clk 0:00:47.5]} 47. h6
{[%clk 0:00:12.8]} 47... g5 {[%clk 0:00:41.5]} 48. Rb1 {[%clk 0:00:12.5]} 48...
Kg6 {[%clk 0:00:38.8]} 49. Rb7 {[%clk 0:00:12.2]} 49... Rxh6 {[%clk 0:00:38.8]}
50. Rxh6+ {[%clk 0:00:12.1]} 50... Kxh6 {[%clk 0:00:39.7]} 51. Rxf7 {[%clk
0:00:12.1]} 51... Ra2 {[%clk 0:00:40.2]} 52. Rf6+ {[%clk 0:00:05]} 52... Kg7
{[%clk 0:00:39.9]} 53. Rxe6 {[%clk 0:00:05.3]} 53... Rd2# {[%clk 0:00:39.4]} 0-1

[Event "Early-Titled-Tuesday-Blitz-January-16-2024"]
[Site "Chess.com"]
[Date "2024.01.16"]
[Round "2"]
[White "eCztery"]
[Black "Yushko_Olga"]
[Result "1-0"]
[WhiteElo "2463"]
[BlackElo "2110"]
[TimeControl "180+1"]
[EndTime "8:18:43 PST"]
[Termination "eCztery won by resignation"]

1. e4 {[%clk 0:03:00.9]} 1... e6 {[%clk 0:02:58.8]} 2. d4 {[%clk 0:02:53.8]}
2... d5 {[%clk 0:02:58.4]} 3. exd5 {[%clk 0:02:48.7]} 3... exd5 {[%clk
0:02:57.7]} 4. Nf3 {[%clk 0:02:49.6]} 4... Nf6 {[%clk 0:02:54.1]} 5. Bd3 {[%clk
0:02:45.7]} 5... Nc6 {[%clk 0:02:48.9]} 6. O-O {[%clk 0:02:45.5]} 6... Be7
{[%clk 0:02:48.7]} 7. c4 {[%clk 0:02:43.7]} 7... Bg4 {[%clk 0:02:47.2]} 8. Be3
{[%clk 0:02:33.1]} 8... dxc4 {[%clk 0:02:45.2]} 9. Bxc4 {[%clk 0:02:32.7]} 9...
O-O {[%clk 0:02:45.3]} 10. Nbd2 {[%clk 0:02:31.3]} 10... Nd5 {[%clk 0:02:42.3]}
11. h3 {[%clk 0:02:30.5]} 11... Bh5 {[%clk 0:02:42.1]} 12. Re1 {[%clk
0:02:22.8]} 12... Re8 {[%clk 0:02:42]} 13. Rc1 {[%clk 0:02:17.2]} 13... Bf6
{[%clk 0:02:40.9]} 14. Qb3 {[%clk 0:02:07.8]} 14... Nxe3 {[%clk 0:02:21.2]} 15.
fxe3 {[%clk 0:01:59.5]} 15... Na5 {[%clk 0:02:12.7]} 16. Qb5 {[%clk 0:01:54.7]}
16... Nxc4 {[%clk 0:02:09.8]} 17. Qxh5 {[%clk 0:01:51.3]} 17... Nxb2 {[%clk
0:02:08.1]} 18. Qb5 {[%clk 0:01:41.3]} 18... c5 {[%clk 0:01:46.5]} 19. Qxb2
{[%clk 0:01:33.8]} 19... cxd4 {[%clk 0:01:46.1]} 20. exd4 {[%clk 0:01:34.7]}
20... Qd5 {[%clk 0:01:29.6]} 21. Kh1 {[%clk 0:01:25.3]} 21... h6 {[%clk
0:01:24.6]} 22. Qb3 {[%clk 0:01:22.5]} 22... Qd7 {[%clk 0:01:06.9]} 23. Ne4
{[%clk 0:01:20.9]} 23... Qf5 {[%clk 0:00:48.9]} 24. Nd6 {[%clk 0:00:58]} 24...
Rxe1+ {[%clk 0:00:48.1]} 25. Rxe1 {[%clk 0:00:49.3]} 25... Qd7 {[%clk
0:00:48.2]} 26. Qxb7 {[%clk 0:00:43.9]} 26... Rd8 {[%clk 0:00:38.8]} 27. Re8+
{[%clk 0:00:34.7]} 27... Kh7 {[%clk 0:00:36.3]} 28. Rxd8 {[%clk 0:00:30.9]}
28... Qxd8 {[%clk 0:00:36.4]} 29. Nxf7 {[%clk 0:00:27.8]} 29... Qe8 {[%clk
0:00:31.8]} 30. N7e5 {[%clk 0:00:26.3]} 30... Qa4 {[%clk 0:00:30.9]} 31. Qe4+
{[%clk 0:00:25.1]} 31... Kg8 {[%clk 0:00:30.2]} 32. Qd5+ {[%clk 0:00:25.1]}
32... Kh7 {[%clk 0:00:30.1]} 33. Kh2 {[%clk 0:00:24.4]} 33... Qa3 {[%clk
0:00:23.8]} 34. Nd7 {[%clk 0:00:22.5]} 34... Qe3 {[%clk 0:00:21]} 35. Nxf6+
{[%clk 0:00:20.2]} 35... gxf6 {[%clk 0:00:18.8]} 36. Qf7+ {[%clk 0:00:20.8]}
36... Kh8 {[%clk 0:00:19.2]} 37. Qxf6+ {[%clk 0:00:21.1]} 37... Kh7 {[%clk
0:00:19.8]} 38. Qf7+ {[%clk 0:00:20.5]} 38... Kh8 {[%clk 0:00:19.9]} 39. d5
{[%clk 0:00:18.6]} 39... Qc5 {[%clk 0:00:16.6]} 40. Qf6+ {[%clk 0:00:17.5]}
40... Kh7 {[%clk 0:00:16.6]} 41. d6 {[%clk 0:00:18.4]} 41... Qc6 {[%clk
0:00:14.7]} 42. Qe7+ {[%clk 0:00:17.7]} 42... Kg6 {[%clk 0:00:14.2]} 43. d7
{[%clk 0:00:18.6]} 43... Qc7+ {[%clk 0:00:14.6]} 44. Ne5+ {[%clk 0:00:18.8]}
44... Kf5 {[%clk 0:00:14.5]} 45. d8=Q {[%clk 0:00:19]} 1-0

[Event "Early-Titled-Tuesday-Blitz-January-16-2024"]
[Site "Chess.com"]
[Date "2024.01.16"]
[Round "2"]
[White "Malikova777"]
[Black "noblerone"]
[Result "1/2-1/2"]
[WhiteElo "2270"]
[BlackElo "2510"]
[TimeControl "180+1"]
[EndTime "8:18:44 PST"]
[Termination "Game drawn by repetition"]

1. d4 {[%clk 0:03:00.9]} 1... d5 {[%clk 0:02:59.6]} 2. c4 {[%clk 0:03:00.7]}
2... c6 {[%clk 0:02:58.9]} 3. cxd5 {[%clk 0:03:00.5]} 3... cxd5 {[%clk
0:02:58.7]} 4. Bf4 {[%clk 0:03:00.9]} 4... Nf6 {[%clk 0:02:58.7]} 5. Nc3 {[%clk
0:03:01.3]} 5... Nc6 {[%clk 0:02:57.2]} 6. e3 {[%clk 0:03:01.7]} 6... a6 {[%clk
0:02:57.4]} 7. Be2 {[%clk 0:03:00]} 7... Bf5 {[%clk 0:02:54.8]} 8. Nf3 {[%clk
0:03:00.3]} 8... e6 {[%clk 0:02:54.6]} 9. Qb3 {[%clk 0:03:00.7]} 9... Ra7 {[%clk
0:02:52.9]} 10. O-O {[%clk 0:02:59]} 10... Bd6 {[%clk 0:02:52]} 11. Bxd6 {[%clk
0:02:55.3]} 11... Qxd6 {[%clk 0:02:52.9]} 12. Nh4 {[%clk 0:02:31.8]} 12... Bg6
{[%clk 0:02:51.7]} 13. Rac1 {[%clk 0:02:29]} 13... Nd7 {[%clk 0:01:39.1]} 14. f4
{[%clk 0:02:24.1]} 14... O-O {[%clk 0:01:14.5]} 15. Nxg6 {[%clk 0:02:11.4]}
15... hxg6 {[%clk 0:01:14]} 16. Na4 {[%clk 0:02:11.2]} 16... Na5 {[%clk
0:01:07.3]} 17. Qd1 {[%clk 0:01:56.7]} 17... b5 {[%clk 0:01:05.5]} 18. Nc5
{[%clk 0:01:55.8]} 18... Nc4 {[%clk 0:01:05.4]} 19. Bxc4 {[%clk 0:01:33.9]}
19... bxc4 {[%clk 0:01:03.6]} 20. b3 {[%clk 0:01:18.6]} 20... Nxc5 {[%clk
0:01:02.4]} 21. dxc5 {[%clk 0:01:19]} 21... Qxc5 {[%clk 0:01:02.7]} 22. bxc4
{[%clk 0:01:19.2]} 22... Qxe3+ {[%clk 0:01:01.1]} 23. Kh1 {[%clk 0:01:19.7]}
23... d4 {[%clk 0:00:38.5]} 24. Rf3 {[%clk 0:01:16.1]} 24... Qe4 {[%clk
0:00:38.4]} 25. Rd3 {[%clk 0:01:13.8]} 25... Rd8 {[%clk 0:00:37.9]} 26. Qd2
{[%clk 0:01:13.7]} 26... Rc7 {[%clk 0:00:36.6]} 27. c5 {[%clk 0:01:13.4]} 27...
Rd5 {[%clk 0:00:35.9]} 28. h3 {[%clk 0:01:09.8]} 28... e5 {[%clk 0:00:29.2]} 29.
fxe5 {[%clk 0:01:07.7]} 29... Qxe5 {[%clk 0:00:30.1]} 30. Rc4 {[%clk 0:01:06.2]}
30... Rcxc5 {[%clk 0:00:28.9]} 31. Rcxd4 {[%clk 0:01:00.7]} 31... Rxd4 {[%clk
0:00:27.9]} 32. Rxd4 {[%clk 0:01:01.6]} 32... Rc1+ {[%clk 0:00:24]} 33. Qxc1
{[%clk 0:01:00.3]} 33... Qxd4 {[%clk 0:00:24.6]} 34. Qc8+ {[%clk 0:01:00.1]}
34... Kh7 {[%clk 0:00:24.9]} 35. Qxa6 {[%clk 0:01:00.1]} 35... Qd1+ {[%clk
0:00:22.6]} 36. Kh2 {[%clk 0:00:59.6]} 36... f5 {[%clk 0:00:22.5]} 37. Qc4
{[%clk 0:00:50.3]} 37... Qd6+ {[%clk 0:00:20.3]} 38. Kg1 {[%clk 0:00:46]} 38...
g5 {[%clk 0:00:20.8]} 39. a4 {[%clk 0:00:43.7]} 39... Qd1+ {[%clk 0:00:20.2]}
40. Kf2 {[%clk 0:00:42.3]} 40... f4 {[%clk 0:00:20.1]} 41. Qb5 {[%clk
0:00:40.4]} 41... Qd2+ {[%clk 0:00:19.4]} 42. Kf1 {[%clk 0:00:38.1]} 42... Qc1+
{[%clk 0:00:18.1]} 43. Kf2 {[%clk 0:00:37]} 43... Qe3+ {[%clk 0:00:19]} 44. Kf1
{[%clk 0:00:37.2]} 44... f3 {[%clk 0:00:17.4]} 45. gxf3 {[%clk 0:00:32.8]} 45...
Qxf3+ {[%clk 0:00:17.5]} 46. Kg1 {[%clk 0:00:32.4]} 46... Qg3+ {[%clk
0:00:17.4]} 47. Kf1 {[%clk 0:00:30.4]} 47... Qxh3+ {[%clk 0:00:18.2]} 48. Kf2
{[%clk 0:00:30.6]} 48... Qh2+ {[%clk 0:00:18.1]} 49. Kf3 {[%clk 0:00:29.7]}
49... Qf4+ {[%clk 0:00:18.7]} 50. Kg2 {[%clk 0:00:29.8]} 50... g4 {[%clk
0:00:18.2]} 51. Qh5+ {[%clk 0:00:29.5]} 51... Kg8 {[%clk 0:00:18.1]} 52. Qe8+
{[%clk 0:00:29.9]} 52... Kh7 {[%clk 0:00:18.7]} 53. Qh5+ {[%clk 0:00:29.9]}
53... Kg8 {[%clk 0:00:19.3]} 54. Qe8+ {[%clk 0:00:30.2]} 54... Kh7 {[%clk
0:00:19.8]} 55. Qh5+ {[%clk 0:00:30.6]} 1/2-1/2